bitfinex/quotes_SOLUSD_20250902
["timestamp","ask_amount","ask_price","bid_price","bid_amount"]
[1756790876578,64.16,203.07,203.06,0.03]
[1756790876982,26.0,203.07,203.06,0.03]
[1756790877179,38.16,203.08,203.06,0.75]
[1756790877373,30.92380993,203.1,203.06,0.75]
[1756790877564,41.47455229,203.09,203.06,0.75]
[1756790877778,3.31455229,203.08,203.06,0.03]
[1756790878082,3.31455229,203.08,203.06,0.75]
[1756790878377,3.31455229,203.08,203.06,0.03]
[1756790878378,26.0,203.07,203.06,0.03]
[1756790879277,26.0,203.07,203.06,0.75]
[1756790881158,26.0,203.07,203.06,0.03]
[1756790881399,34.24041462,203.07,203.06,0.03]
[1756790882271,29.31600432,203.07,203.06,0.03]
[1756790883172,3.31600432,203.07,203.06,0.75]
[1756790883583,38.16,203.08,203.06,0.75]
[1756790884076,26.0,203.1,203.06,0.75]
[1756790884273,26.0,203.07,203.06,0.75]
[1756790885368,26.0,203.07,203.06,0.03]
[1756790885884,26.0,203.07,203.06,0.73]
[1756790887077,30.9244103,203.07,203.06,0.03]
[1756790887380,34.24145613,203.07,203.06,0.03]
[1756790887576,72.92145613,203.07,203.06,0.03]
[1756790889286,29.31704583,203.07,203.06,0.03]
[1756790889487,3.31704583,203.07,203.06,0.73]
[1756790889864,3.31704583,203.07,203.06,0.03]
[1756790892888,41.47704583,203.07,203.06,0.03]
[1756790893603,46.92145613,203.07,203.06,0.03]
[1756790893775,46.40145613,203.07,203.06,0.03]
[1756790894873,46.92145613,203.07,203.06,0.03]
[1756790895073,46.92145613,203.07,203.05,0.03]
[1756790895273,3.31704583,203.06,203.05,0.03]
[1756790895690,8.76169864,203.06,203.05,0.03]
[1756790898382,10.73627664,203.06,203.05,0.03]
[1756790900591,10.73627664,203.06,203.03,0.03]
[1756790900592,26.0,203.04,203.03,0.03]
[1756790900788,67.47704583,203.04,203.03,0.03]
[1756790901101,67.99704583,203.04,203.03,0.03]
[1756790901403,69.97191583,203.04,203.03,0.03]
[1756790901774,74.89705373,203.04,203.03,0.03]
[1756790901970,74.37705373,203.04,203.03,0.03]
[1756790904491,36.21705373,203.04,203.03,0.03]
[1756790904697,72.40218373,203.04,203.03,0.03]
[1756790905593,34.24218373,203.04,203.03,0.03]
[1756790905797,72.40218373,203.04,203.03,0.03]
[1756790907005,3.31704583,203.04,203.03,0.03]
[1756790907179,5.29171983,203.05,203.03,0.73]
[1756790907384,29.31704583,203.04,203.03,0.73]
[1756790907704,38.16,203.06,203.03,0.73]
[1756790907900,3.31276433,203.05,203.03,0.73]
[1756790908095,38.16,203.06,203.03,0.73]
[1756790909710,26.0,203.06,203.03,0.73]
[1756790909892,38.16,203.05,203.03,0.73]
[1756790911113,38.16,203.05,203.03,0.03]
[1756790911316,38.16,203.05,203.04,0.7]
[1756790911625,41.47535788,203.05,203.04,0.7]
[1756790911981,38.16,203.05,203.04,0.7]
[1756790912694,41.47654659,203.05,203.04,0.7]
[1756790917404,41.47654659,203.05,203.04,0.73]
[1756790917813,41.53654659,203.05,203.04,0.73]
[1756790920005,26.06,203.05,203.04,0.73]
[1756790922209,64.2,203.05,203.04,0.73]
[1756790924110,67.51945766,203.05,203.04,0.73]
[1756790928019,3.37945766,203.05,203.04,0.73]
[1756790929324,0.06,203.05,203.04,0.73]
[1756790930341,0.06,203.05,203.04,74.73]
[1756790930643,0.06,203.05,203.04,79.6551379]
[1756790931921,0.06,203.05,203.04,74.03]
[1756790932224,0.06,203.05,203.04,0.7]
[1756790933222,26.06,203.05,203.04,0.03]
[1756790933431,3.90007215,203.05,203.04,0.03]
[1756790933610,26.0,203.04,203.03,0.03]
[1756790933815,67.46007215,203.04,203.02,0.03]
[1756790934014,3.84007215,203.03,203.02,0.03]
[1756790934612,5.81484415,203.03,203.02,0.03]
[1756790935626,10.74022463,203.03,203.02,0.03]
[1756790935824,31.29484415,203.03,203.02,0.7]
[1756790936027,67.46007215,203.03,203.02,0.03]
[1756790940929,29.32007215,203.03,203.02,0.03]
[1756790941133,67.46007215,203.03,203.02,0.03]
[1756790944631,67.46067085,203.03,203.02,0.03]
[1756790945935,29.32067085,203.03,203.02,0.03]
[1756790946136,67.46067085,203.03,203.02,0.03]
[1756790947139,29.32067085,203.03,203.02,0.03]
[1756790948627,34.24605133,203.03,203.02,0.03]
[1756790949323,34.76605133,203.03,203.02,0.03]
[1756790950348,36.74072633,203.03,203.02,0.03]
[1756790952950,36.80072633,203.03,203.02,0.03]
[1756790954151,36.80072633,203.03,203.0,0.03]
[1756790954152,179.51560254,203.03,203.0,0.03]
[1756790954343,41.44067085,203.02,203.0,0.03]
[1756790954542,26.0,203.0,202.98,0.03]
[1756790954730,67.44067085,203.0,202.98,0.03]
[1756790954927,69.41573585,203.0,202.98,0.03]
[1756790955132,41.44067085,202.99,202.98,0.03]
[1756790955342,67.44067085,202.99,202.98,0.03]
[1756790955831,67.44067085,202.99,202.98,0.73]
[1756790956640,72.3670219,202.99,202.98,0.03]
[1756790958953,67.44067085,202.99,202.98,0.03]
[1756790959154,67.44067085,202.99,202.98,0.73]
[1756790959740,29.32067085,202.99,202.98,0.73]
[1756790960051,26.0,202.99,202.98,0.73]
[1756790960251,26.0,202.99,202.98,74.73]
[1756790963030,26.0,202.99,202.98,0.73]
[1756790966133,26.0,202.99,202.98,74.73]
[1756790969053,26.0,202.99,202.98,0.73]
[1756790970960,26.06,202.99,202.98,0.73]
[1756790972061,26.06,202.99,202.98,74.73]
[1756790972582,0.06,202.99,202.98,5.65659375]
[1756790975462,0.06,202.99,202.98,79.65659375]
[1756790976657,0.06,202.99,202.98,0.03]
[1756790977065,26.06,202.99,202.98,0.03]
[1756790977374,29.37940035,202.99,202.98,0.03]
[1756790978463,29.89940035,202.99,202.98,0.03]
[1756790978769,34.8257514,202.99,202.98,0.03]
[1756790979263,36.8007184,202.99,202.98,0.03]
[1756790979650,40.95155696,202.99,202.98,0.03]
[1756790982262,36.8007184,202.99,202.98,0.03]
[1756790982761,3.37940035,202.99,202.98,0.03]
[1756790983162,3.37940035,202.99,202.98,0.73]
[1756790985148,0.06,202.99,202.98,4.23077266]
[1756790985775,0.06,202.99,202.98,83.15736641]
[1756790986767,0.06,202.99,202.98,96.75296042]
[1756790987459,0.06,202.99,202.98,100.13277042]
[1756790995264,0.06,202.99,202.98,138.25277042]
[1756790998776,0.06,202.99,202.98,134.73199776]
[1756790998976,0.06,202.99,202.98,138.23277042]
[1756791001758,0.06,202.99,202.98,100.13277042]
[1756791001978,0.06,202.99,202.98,138.23277042]
[1756791003183,0.06,203.02,202.99,13.59559401]
[1756791003354,0.06,203.02,203.01,22.02223239]
[1756791003858,0.06,203.02,203.01,22.72223239]
[1756791004068,0.06,203.02,203.01,19.22145973]
[1756791004384,0.06,203.02,203.01,1.973895]
[1756791004591,0.58,203.02,202.99,13.59559401]
[1756791004780,0.58,203.02,202.99,51.69559401]
[1756791004979,0.06,203.02,202.99,51.69559401]
[1756791005177,0.06,203.02,202.99,56.62179399]
[1756791005385,0.06,203.02,203.01,8.42663838]
[1756791005565,0.06,203.02,203.01,60.12223239]
[1756791005763,0.06,203.02,203.01,56.62145973]
[1756791005965,0.06,203.02,203.01,57.33145973]
[1756791006782,0.06,203.02,203.01,60.83223239]
[1756791007179,0.06,203.02,203.01,62.80612839]
[1756791007592,0.06,203.02,203.01,60.83223239]
[1756791010666,0.06,203.02,203.01,134.83223239]
[1756791011288,1e-08,203.02,203.01,134.83223239]
[1756791011668,0.06,203.05,203.02,13.59559401]
[1756791011862,1e-08,203.05,203.04,43.09636667]
[1756791012295,1e-08,203.05,203.04,43.80636667]
[1756791012457,0.06,203.1,203.04,43.80636667]
[1756791012458,1e-08,203.08,203.05,17.09636667]
[1756791012662,1e-08,203.08,203.07,17.09636667]
[1756791013077,1e-08,203.08,203.07,17.80636667]
[1756791013363,1e-08,203.08,203.07,22.65192883]
[1756791013567,1e-08,203.08,203.07,22.73077697]
[1756791013871,1e-08,203.08,203.07,62.80379597]
[1756791014781,1e-08,203.08,203.07,136.80379597]
[1756791021790,1e-08,203.08,203.07,133.30302331]
[1756791021984,1e-08,203.08,203.07,136.80379597]
[1756791022290,1e-08,203.08,203.07,136.83379597]
[1756791022991,1e-08,203.08,203.07,94.52302331]
[1756791023291,1e-08,203.08,203.07,132.60302331]
[1756791024003,1e-08,203.08,203.07,136.10379597]
[1756791024173,0.52000001,203.08,203.07,74.03]
[1756791024373,5.44416782,203.08,203.07,0.03]
[1756791024680,5.44416782,203.08,203.04,0.03]
[1756791026294,0.52000001,203.08,203.04,0.03]
[1756791027392,5.44417809,203.08,203.04,74.03]
[1756791027591,0.49,203.07,203.04,74.03]
[1756791027906,0.49,203.06,203.04,74.03]
[1756791028074,1e-08,203.08,203.04,74.03]
[1756791028276,1e-08,203.08,203.05,4.92489534]
[1756791028880,0.49000001,203.08,203.05,4.92489534]
[1756791029082,1e-08,203.08,203.05,4.92489534]
[1756791030296,1e-08,203.08,203.06,14.30559401]
[1756791031387,1e-08,203.08,203.07,4.9244103]
[1756791031976,1e-08,203.08,203.07,18.52000431]
[1756791032176,1e-08,203.08,203.07,60.81077697]
[1756791032371,1e-08,203.08,203.07,64.18025297]
[1756791033400,1e-08,203.08,203.07,138.18025297]
[1756791034401,1e-08,203.08,203.07,134.67948031]
[1756791036599,1e-08,203.08,203.07,138.18025297]
[1756791037703,1e-08,203.08,203.07,64.18025297]
[1756791037889,1e-08,203.08,203.07,64.672694]
[1756791038905,1e-08,203.08,203.07,61.17192134]
[1756791039497,1e-08,203.08,203.07,64.672694]
[1756791039704,1e-08,203.08,203.07,61.17192134]
[1756791039895,1e-08,203.08,203.07,61.20192134]
[1756791040811,1e-08,203.08,203.07,215.50192134]
[1756791041011,1e-08,203.08,203.07,215.00948031]
[1756791041807,1e-08,203.08,203.07,218.51025297]
[1756791043018,1e-08,203.08,203.07,215.00948031]
[1756791043207,1e-08,203.08,203.07,218.51025297]
[1756791043517,1e-08,203.08,203.07,217.24679197]
[1756791047307,1e-08,203.08,203.07,179.16679197]
[1756791047512,1e-08,203.08,203.07,217.24679197]
[1756791047720,1e-08,203.08,203.07,179.16679197]
[1756791047930,1e-08,203.08,203.07,175.79731597]
[1756791048113,1e-08,203.08,203.07,213.85731597]
[1756791049821,1e-08,203.08,203.07,215.83013997]
[1756791052421,0.06,203.11,203.1,39.59559401]
[1756791052600,0.06,203.11,203.1,160.68527396]
[1756791052799,0.06,203.11,203.1,160.89290567]
[1756791054111,1e-08,203.11,203.1,165.81658858]
[1756791054906,1e-08,203.11,203.1,163.57927692]
[1756791055102,1e-08,203.11,203.1,165.81658858]
[1756791055632,1e-08,203.11,203.1,239.81658858]
[1756791056009,1e-08,203.11,203.1,241.78902358]
[1756791057224,1e-08,203.11,203.1,203.72902358]
[1756791057421,1e-08,203.11,203.1,241.78902358]
[1756791069013,0.49000001,203.11,203.1,118.51927692]
[1756791069222,1e-08,203.11,203.1,118.51927692]
[1756791069407,1e-08,203.11,203.1,156.57927692]
[1756791069607,1e-08,203.11,203.1,159.49658858]
[1756791070810,1e-08,203.11,203.1,156.57927692]
[1756791071616,1e-08,203.11,203.1,157.25927692]
[1756791072146,1e-08,203.11,203.1,159.49658858]
[1756791073338,1e-08,203.11,203.1,161.46912158]
[1756791074252,0.06,203.14,203.13,26.0]
[1756791074462,0.06,203.16,203.14,13.59559401]
[1756791074750,0.06,203.16,203.15,57.05031219]
[1756791075447,0.06,203.16,203.15,59.96762385]
[1756791075644,1e-08,203.16,203.15,59.96762385]
[1756791075842,0.06,203.19,203.15,140.26762385]
[1756791076048,0.06,203.19,203.18,2.23731166]
[1756791076239,0.06,203.19,203.18,54.36508009]
[1756791076436,0.06,203.19,203.18,55.04508009]
[1756791076632,0.06,203.19,203.18,59.70126769]
[1756791077033,0.06,203.19,203.18,59.96682435]
[1756791077238,0.06,203.19,203.18,61.93857935]
[1756791077549,0.06,203.19,203.18,94.98126769]
[1756791077845,0.06,203.19,203.18,132.52909327]
[1756791078048,0.06,203.19,203.18,130.55733827]
[1756791078751,0.06,203.19,203.18,133.47464993]
[1756791079452,1e-08,203.2,203.19,13.59559401]
[1756791079748,1e-08,203.2,203.19,52.80774421]
[1756791080054,1e-08,203.2,203.19,55.04505587]
[1756791080635,1e-08,203.2,203.19,59.96655791]
[1756791081724,1e-08,203.2,203.19,59.28655791]
[1756791081928,1e-08,203.2,203.19,59.96655791]
[1756791082357,1e-08,203.2,203.19,61.93821491]
[1756791082841,1e-08,203.2,203.19,135.93821491]
[1756791083036,1e-08,203.2,203.19,135.44606471]
[1756791084549,1e-08,203.2,203.19,215.74606471]
[1756791085856,0.1,203.23,203.21,39.59559401]
[1756791086150,0.1,203.23,203.21,79.87290567]
[1756791086352,0.1,203.23,203.21,81.04500743]
[1756791086543,0.1,203.23,203.21,83.01647043]
[1756791087354,0.1,203.23,203.21,87.93748809]
[1756791088957,0.1,203.23,203.21,94.98017643]
[1756791089134,0.1,203.23,203.21,130.55661167]
[1756791090157,0.1,203.23,203.21,133.47392333]
[1756791091832,0.1,203.23,203.21,132.79392333]
[1756791092048,0.1,203.23,203.21,133.47392333]
[1756791092453,0.1,203.23,203.21,131.23661167]
[1756791095366,0.1,203.23,203.22,13.59559401]
[1756791095560,0.1,203.23,203.22,15.83290567]
[1756791096072,0.1,203.23,203.22,20.85954949]
[1756791096256,0.1,203.23,203.22,25.780325]
[1756791096972,0.1,203.23,203.22,23.54301334]
[1756791097260,0.1,203.23,203.22,61.56301334]
[1756791098049,0.59,203.23,203.22,13.59559401]
[1756791098366,0.59,203.23,203.21,74.0]
[1756791098662,0.49,203.22,203.21,87.59559401]
[1756791099866,0.1,203.23,203.22,13.59559401]
[1756791100081,0.1,203.23,203.22,51.61559401]
[1756791100362,0.1,203.23,203.22,56.53636952]
[1756791101361,0.1,203.23,203.22,18.51636952]
[1756791101560,0.1,203.23,203.22,56.53636952]
[1756791102156,0.1,203.23,203.22,18.51636952]
[1756791102370,0.1,203.23,203.22,56.53636952]
[1756791103354,0.59,203.23,203.22,56.53636952]
[1756791103668,0.1,203.23,203.22,56.53636952]
[1756791104446,0.1,203.23,203.22,130.53636952]
[1756791105252,2.55792909,203.29,203.22,130.53636952]
[1756791105866,2.55792909,203.29,203.22,92.51636952]
[1756791106053,2.55792909,203.29,203.24,13.59559401]
[1756791106253,2.55792909,203.29,203.25,38.02]
[1756791106753,2.55792909,203.29,203.24,38.02]
[1756791107271,26.0,203.29,203.24,38.02]
[1756791107870,5.01853294,203.32,203.25,13.59559401]
[1756791108072,5.01853294,203.32,203.26,42.93980714]
[1756791109051,0.1,203.32,203.26,42.93980714]
[1756791109250,0.06,203.28,203.26,42.93980714]
[1756791109459,0.06,203.28,203.27,13.59559401]
[1756791110379,0.06,203.28,203.27,18.51515912]
[1756791112879,0.06,203.28,203.27,87.59559401]
[1756791114074,0.06,203.28,203.27,92.51515912]
[1756791114651,0.06,203.28,203.27,87.59559401]
[1756791117769,0.06,203.28,203.27,13.59559401]
[1756791120486,0.06,203.28,203.27,18.51515912]
[1756791120677,0.06,203.28,203.27,87.59559401]
[1756791121291,0.06,203.28,203.27,125.61559401]
[1756791121653,0.06,203.28,203.27,74.0]
[1756791123782,29.37710163,203.28,203.22,4.918667]
[1756791124083,26.0,203.24,203.21,0.03]
[1756791124284,26.0,203.22,203.21,0.03]
[1756791124587,29.31710163,203.22,203.21,0.03]
[1756791125281,34.23787714,203.22,203.21,0.03]
[1756791126576,34.23787714,203.22,203.16,14.33559401]
[1756791126883,3.31710163,203.21,203.18,74.03]
[1756791127492,34.23813385,203.21,203.18,74.03]
[1756791127691,3.31710163,203.2,203.18,74.03]
[1756791127898,26.0,203.19,203.18,0.03]
[1756791128192,29.31710163,203.19,203.18,0.03]
[1756791129569,34.23860367,203.19,203.18,0.03]
[1756791132063,26.0,203.19,203.18,0.03]
[1756791132680,26.0,203.19,203.18,0.74]
[1756791133077,26.0,203.19,203.18,0.03]
[1756791133261,26.0,203.22,203.18,0.74]
[1756791133461,64.02,203.22,203.18,0.74]
[1756791133684,64.02,203.22,203.19,0.71]
[1756791135567,4.92075809,203.23,203.19,0.71]
[1756791135781,4.92075809,203.23,203.2,0.71]
[1756791135782,41.32831187,203.22,203.2,0.71]
[1756791136087,38.02,203.22,203.2,0.71]
[1756791137978,26.0,203.21,203.2,0.71]
[1756791138489,26.0,203.21,203.18,0.03]
[1756791138882,30.92102332,203.21,203.18,0.03]
[1756791139384,30.92102332,203.21,203.18,0.74]
[1756791140079,30.92102332,203.21,203.18,0.03]
[1756791141903,30.92102332,203.21,203.18,0.74]
[1756791144102,30.98102332,203.21,203.18,0.74]
[1756791144500,30.98102332,203.21,203.18,74.74]
[1756791147685,30.98102332,203.21,203.18,0.74]
[1756791148200,30.98102332,203.21,203.18,0.03]
[1756791148392,30.98102332,203.21,203.18,0.74]
[1756791149010,26.0,203.19,203.18,0.74]
[1756791149202,26.0,203.19,203.18,0.03]
[1756791149404,26.0,203.19,203.18,0.74]
[1756791150712,26.0,203.19,203.18,74.74]
[1756791151290,0.06,203.21,203.18,74.74]
[1756791151497,0.06,203.21,203.19,0.71]
[1756791152113,0.06,203.21,203.2,0.71]
[1756791157424,26.0,203.19,203.18,0.03]
[1756791157630,0.06,203.21,203.18,0.03]
[1756791157631,64.02,203.2,203.18,0.03]
[1756791159414,8.23171609,203.19,203.18,0.03]
[1756791160416,26.0,203.16,203.15,0.03]
[1756791160612,26.0,203.16,203.13,0.03]
[1756791160613,67.33021405,203.16,203.13,0.03]
[1756791160818,3.31021405,203.15,203.09,0.68]
[1756791161011,26.0,203.11,203.09,0.68]
[1756791161227,26.0,203.11,203.07,0.03]
[1756791161412,26.0,203.09,203.07,0.03]
[1756791161603,26.0,203.08,203.07,0.71]
[1756791165622,3.31075767,203.15,203.11,5.60333536]
[1756791165828,3.31075767,203.15,203.12,0.68]
[1756791166036,26.0,203.14,203.13,0.68]
[1756791167023,9.61499737,203.21,203.13,0.68]
[1756791167228,41.35165969,203.2,203.13,0.68]
[1756791167428,26.0,203.17,203.13,0.68]
[1756791168327,26.0,203.17,203.14,4.92271339]
[1756791168524,3.31505978,203.16,203.15,0.68]
[1756791168917,26.0,203.17,203.15,0.68]
[1756791169417,26.0,203.17,203.16,0.68]
[1756791169730,29.31530256,203.17,203.16,0.68]
[1756791172243,29.31530256,203.17,203.15,74.0]
[1756791172417,3.31530256,203.16,203.14,0.68]
[1756791172733,26.0,203.14,203.1,0.03]
[1756791172939,26.0,203.14,203.1,0.71]
[1756791173112,26.0,203.14,203.11,0.68]
[1756791173113,64.04,203.14,203.11,0.68]
[1756791173434,64.04,203.14,203.12,0.68]
[1756791173815,64.04,203.14,203.1,4.95367811]
[1756791174137,64.04,203.14,203.11,0.68]
[1756791175337,64.04,203.14,203.11,74.68]
[1756791175547,64.04,203.14,203.11,79.60343505]
[1756791176244,64.04,203.14,203.12,0.68]
[1756791176921,64.04,203.14,203.13,0.68]
[1756791177313,30.953679,203.18,203.13,5.60290245]
[1756791177513,26.0,203.15,203.14,0.68]
[1756791181028,0.06,203.17,203.14,5.60271339]
[1756791181224,0.06,203.17,203.15,0.68]
[1756791181622,0.06,203.17,203.16,0.68]
[1756791182724,0.06,203.17,203.16,5.60222878]
[1756791183057,0.06,203.17,203.16,79.60222878]
[1756791183217,0.06,203.17,203.16,74.0]
[1756791184050,0.06,203.17,203.16,74.68]
[1756791184523,0.06,203.17,203.16,74.0]
[1756791185240,26.0,203.15,203.13,0.03]
[1756791185426,26.0,203.15,203.14,0.67]
[1756791186435,26.0,203.16,203.14,0.67]
[1756791186638,26.0,203.16,203.14,5.59253366]
[1756791186815,26.0,203.16,203.15,0.67]
[1756791187325,29.31500145,203.16,203.15,0.67]
[1756791188134,29.31500145,203.16,203.15,74.67]
[1756791189141,29.31500145,203.16,203.13,5.62291248]
[1756791189444,26.0,203.16,203.14,0.67]
[1756791190946,26.06,203.17,203.14,0.67]
[1756791191146,26.06,203.17,203.13,4.95291248]
[1756791191147,26.0,203.15,203.13,0.03]
[1756791192041,26.0,203.15,203.14,0.67]
[1756791192547,29.31585804,203.15,203.14,0.67]
[1756791192744,0.06,203.17,203.14,0.67]
[1756791192928,3.37580263,203.17,203.15,0.67]
[1756791193429,3.37580263,203.17,203.14,4.9225799]
[1756791193744,3.37580263,203.17,203.14,5.5925799]
[1756791195141,3.37580263,203.17,203.13,0.03]
[1756791195437,3.37580263,203.17,203.13,0.7]
[1756791195640,3.37580263,203.17,203.14,0.67]
[1756791196644,3.37580263,203.17,203.15,0.67]
[1756791196855,3.31580263,203.16,203.14,4.92267402]
[1756791197146,0.06,203.17,203.14,4.92267402]
[1756791197550,0.06,203.17,203.15,0.67]
[1756791197930,0.06,203.17,203.16,5.59222878]
[1756791201760,3.37759459,203.2,203.17,13.59559401]
[1756791202055,0.06,203.2,203.18,0.67]
[1756791202437,0.06,203.2,203.18,4.047595]
[1756791202740,0.06,203.2,203.19,26.0]
[1756791202965,0.06,203.2,203.19,0.67]
[1756791203250,0.06,203.2,203.19,19.18709605]
[1756791204147,0.06,203.2,203.19,93.18709605]
[1756791206555,0.06,203.2,203.19,95.15904505]
[1756791207567,0.06,203.21,203.2,15.83257824]
[1756791207856,0.06,203.21,203.2,54.52257824]
[1756791208242,0.06,203.21,203.2,56.49433324]
[1756791210540,0.06,203.21,203.2,59.17860885]
[1756791211561,0.06,203.21,203.2,61.41559308]
[1756791212954,0.06,203.21,203.2,59.17860885]
[1756791213150,1e-08,203.21,203.2,61.41559308]
[1756791213461,1e-08,203.22,203.2,142.20771906]
[1756791213758,1e-08,203.22,203.21,16.50257824]
[1756791214557,1e-08,203.22,203.21,18.47404124]
[1756791215761,1e-08,203.22,203.21,23.3950589]
[1756791216064,1e-08,203.22,203.21,61.3950589]
[1756791217247,1e-08,203.22,203.21,135.3950589]
[1756791219065,1e-08,203.22,203.21,215.6950589]
[1756791221454,0.06000001,203.22,203.21,75.971463]
[1756791221660,0.06000001,203.22,203.2,0.03]
[1756791222465,0.06000001,203.22,203.21,4.92101766]
[1756791222666,0.06000001,203.22,203.2,0.03]
[1756791222865,0.06,203.21,203.2,0.03]
[1756791223078,1e-08,203.22,203.2,0.03]
[1756791223384,0.06000001,203.22,203.2,0.03]
[1756791224667,0.06000001,203.22,203.2,74.03]
[1756791225076,1e-08,203.22,203.2,78.95103979]
[1756791226374,0.06000001,203.22,203.2,78.95103979]
[1756791226672,0.06000001,203.22,203.2,74.03]
[1756791226880,1e-08,203.22,203.2,74.03]
[1756791227067,1e-08,203.22,203.2,78.95120241]
[1756791227562,1e-08,203.22,203.2,74.03]
[1756791228874,1e-08,203.22,203.2,78.95119623]
[1756791231157,1e-08,203.22,203.2,117.64119623]
[1756791232783,1e-08,203.22,203.2,116.95119623]
[1756791232957,1e-08,203.22,203.21,19.20661167]
[1756791236480,1e-08,203.22,203.21,21.17826967]
[1756791236861,1e-08,203.22,203.21,25.16428446]
[1756791237062,1e-08,203.22,203.21,21.17826967]
[1756791237276,1e-08,203.22,203.21,59.17826967]
[1756791237684,1e-08,203.22,203.21,21.17826967]
[1756791237886,1e-08,203.22,203.21,59.19826967]
[1756791238381,1e-08,203.22,203.21,57.22661167]
[1756791238582,1e-08,203.22,203.2,6.92305553]
[1756791238765,1e-08,203.22,203.21,38.02]
[1756791239173,1e-08,203.22,203.21,112.02]
[1756791239359,1e-08,203.22,203.21,74.0]
[1756791239770,1e-08,203.22,203.21,78.92101766]
[1756791240381,1e-08,203.22,203.21,74.0]
[1756791242079,1e-08,203.22,203.2,42.97119581]
[1756791243984,0.06,203.21,203.2,0.03]
[1756791244283,0.06,203.21,203.17,0.03]
[1756791244489,0.06,203.2,203.17,0.03]
[1756791245167,0.06,203.2,203.17,74.03]
[1756791246781,0.06,203.19,203.17,74.03]
[1756791248064,4.92101766,203.21,203.17,74.03]
[1756791248264,0.06,203.21,203.17,74.03]
[1756791248485,30.92090671,203.22,203.17,74.03]
[1756791248673,0.06,203.2,203.17,74.03]
[1756791249490,30.92090671,203.22,203.17,74.03]
[1756791249491,0.06,203.19,203.17,74.03]
[1756791249871,0.06,203.19,203.17,0.03]
[1756791250369,0.06,203.18,203.17,0.03]
[1756791250984,0.06,203.2,203.17,0.03]
[1756791252491,30.92090671,203.22,203.17,0.03]
[1756791252681,0.06,203.19,203.17,0.03]
[1756791253390,4.92125984,203.2,203.17,0.03]
[1756791253592,42.94104314,203.21,203.17,0.03]
[1756791253789,26.0,203.18,203.17,0.03]
[1756791255901,26.0,203.18,203.15,0.03]
[1756791255902,26.0,203.17,203.15,0.03]
[1756791256207,26.0,203.17,203.13,0.03]
[1756791256208,64.02,203.16,203.13,0.03]
[1756791256379,64.08,203.16,203.08,0.03]
[1756791257102,1.973701,203.15,203.08,0.03]
[1756791257315,26.0,203.12,203.08,0.03]
[1756791257682,26.06,203.12,203.08,0.03]
[1756791257877,26.0,203.12,203.08,0.03]
[1756791258185,26.0,203.11,203.08,0.03]
[1756791258388,30.9234405,203.11,203.08,0.03]
[1756791259176,68.9434405,203.11,203.08,0.03]
[1756791263002,68.9434405,203.11,203.1,0.73]
[1756791263003,26.0,203.11,203.1,0.73]
[1756791263296,1.973409,203.16,203.1,0.73]
[1756791263496,38.02,203.15,203.1,74.73]
[1756791263704,64.02,203.15,203.11,0.7]
[1756791264088,26.0,203.13,203.12,0.7]
[1756791264288,26.0,203.13,203.1,74.03]
[1756791264903,26.0,203.13,203.11,0.7]
[1756791266305,64.02,203.14,203.11,0.7]